bitfinex-derivatives/quotes_ETHF0:USTF0_20250123
["timestamp","ask_amount","ask_price","bid_price","bid_amount"]
[1737653214933,0.6157,3247.5,3247.4,0.61572]
[1737653215134,0.28868328,3247.6,3247.2,3.2078]
[1737653215327,0.61574,3247.3,3247.2,3.82355]
[1737653216035,0.61574,3247.3,3247.2,0.61575]
[1737653216220,0.61572,3247.4,3247.2,0.61574]
[1737653216725,0.61572,3247.4,3247.3,0.61574]
[1737653217334,0.28868328,3247.6,3247.0,0.24977971]
[1737653217524,0.61573,3247.4,3247.2,0.61574]
[1737653217925,0.61574,3247.3,3247.2,0.61574]
[1737653218729,0.61573,3247.4,3246.9,2.5219]
[1737653218935,1.82791328,3247.6,3246.9,2.5219]
[1737653219130,1.82791328,3247.6,3247.1,0.61576]
[1737653219432,0.61575,3247.3,3247.1,0.61576]
[1737653219624,0.61572,3247.4,3247.3,0.61573]
[1737653219830,0.28868328,3247.6,3247.2,0.61575]
[1737653220232,0.61575,3247.3,3246.9,2.5219]
[1737653220431,0.61573,3247.4,3247.2,0.61576]
[1737653220826,0.61574,3247.3,3247.2,0.61576]
[1737653221523,0.28868328,3247.6,3246.9,2.5219]
[1737653221725,0.6157,3247.5,3247.2,0.61574]
[1737653221937,0.61573,3247.4,3247.3,0.61574]
[1737653222130,0.61572,3247.4,3247.3,0.61574]
[1737653222932,0.61571,3247.5,3247.3,0.61574]
[1737653223232,0.61572,3247.4,3247.3,0.61574]
[1737653223430,0.61572,3247.4,3246.9,5.27771]
[1737653223431,0.6157,3247.5,3247.2,0.61575]
[1737653223626,0.61574,3247.3,3247.2,0.61575]
[1737653224334,0.28868328,3247.6,3247.2,0.61575]
[1737653224531,0.61576,3247.2,3247.1,0.61577]
[1737653224731,0.61575,3247.3,3247.2,0.61575]
[1737653224933,0.61574,3247.3,3247.2,0.61575]
[1737653225133,0.61573,3247.4,3247.2,0.61575]
[1737653225534,0.61575,3247.3,3246.9,2.5219]
[1737653225932,0.61575,3247.3,3247.1,0.61576]
[1737653226130,0.61575,3247.3,3247.2,0.61576]
[1737653226333,0.61579,3247.1,3246.9,3.1377]
[1737653226532,0.61579,3247.0,3246.9,2.5219]
[1737653227039,0.61579,3247.0,3246.4,2.78076]
[1737653227040,0.6159,3246.5,3246.3,5.42801405]
[1737653227341,2.73397,3246.9,3246.4,0.61591]
[1737653227536,0.61587,3246.6,3246.5,0.61588]
[1737653227735,1.1944,3246.9,3246.3,4.81209405]
[1737653227937,3.02854629,3246.4,3246.1,7.22276286]
[1737653228140,3.2078,3246.6,3246.1,7.22276286]
[1737653228338,1.1944,3246.9,3246.1,10.43056286]
[1737653228534,0.61594,3246.3,3246.2,1.2506]
[1737653228847,0.61591,3246.4,3246.3,0.61592]
[1737653229343,0.28868328,3246.6,3246.2,1.2506]
[1737653229644,0.28868328,3246.6,3246.5,0.61589]
[1737653229833,0.61586,3246.7,3246.5,0.61589]
[1737653230037,0.61586,3246.7,3246.6,1.2055]
[1737653230241,0.28868328,3246.9,3246.6,1.2055]
[1737653230443,0.28868328,3246.9,3246.8,0.61583]
[1737653230737,0.28868328,3246.9,3246.8,41.41583]
[1737653231134,3.2078,3247.0,3246.8,1.1551]
[1737653231335,3.2078,3247.0,3246.9,0.61581]
[1737653231531,0.61581,3246.9,3246.8,1.1551]
[1737653231748,3.49656977,3247.0,3246.9,0.61581]
[1737653232043,0.61575,3247.3,3246.8,1.1551]
[1737653232343,0.61572,3247.4,3246.9,4.74734]
[1737653232644,0.61572,3247.5,3247.3,0.61574]
[1737653232844,0.6157,3247.5,3247.4,1.1551]
[1737653234346,0.6157,3247.6,3247.5,0.6157]
[1737653235145,0.90439534,3247.7,3247.4,1.1551]
[1737653235449,0.61568,3247.6,3247.4,1.7708]
[1737653235849,0.61568,3247.6,3247.5,0.6157]
[1737653236042,0.6156,3248.1,3247.8,0.61563]
[1737653236243,3.82338,3248.2,3247.9,0.61562]
[1737653236442,3.82338,3248.2,3248.0,2.9539]
[1737653236947,3.2078,3248.2,3248.0,2.9539]
[1737653237144,0.28866375,3248.1,3248.0,2.9539]
[1737653237342,0.28866375,3248.1,3248.0,5.36653629]
[1737653237648,0.28866375,3248.1,3248.0,8.57433629]
[1737653237951,3.2078,3248.6,3248.5,0.61551]
[1737653238141,3.49643065,3248.6,3248.5,0.61551]
[1737653238743,0.90412065,3248.6,3248.5,0.61551]
[1737653239250,0.90413065,3248.6,3248.1,0.61559]
[1737653239552,0.6155,3248.6,3248.5,0.61551]
[1737653239749,0.6155,3248.6,3248.4,0.61552]
[1737653240045,0.61555,3248.3,3248.2,1.088]
[1737653240253,5.66771694,3249.0,3248.2,1.088]
[1737653240551,0.28863065,3248.6,3248.1,3.2078]
[1737653240746,0.28863065,3248.6,3248.0,2.9539]
[1737653240951,0.61558,3248.2,3248.0,2.9539]
[1737653241248,0.28863065,3248.6,3248.0,2.9539]
[1737653241450,0.61553,3248.4,3248.2,0.61556]
[1737653241841,0.90413065,3248.6,3248.0,7.95873629]
[1737653242041,0.6155,3248.6,3248.3,0.61554]
[1737653242236,0.28863065,3248.7,3248.6,0.61549]
[1737653242437,0.28863065,3248.7,3248.6,3.02812629]
[1737653242648,3.2078,3249.2,3248.6,3.02812629]
[1737653242649,0.61542,3249.0,3248.6,2.41263629]
[1737653242947,0.28863065,3249.1,3248.9,2.41263629]
[1737653243250,0.28859009,3249.5,3248.9,2.41263629]
[1737653243548,0.28859009,3249.5,3249.3,3.2078]
[1737653243746,3.2078,3249.7,3249.4,1.1481]
[1737653243943,3.2078,3249.7,3249.0,1.1007]
[1737653244146,3.2078,3249.7,3249.0,2.2488]
[1737653244343,3.2078,3249.7,3249.0,2.25342178]
[1737653244659,0.61537,3249.3,3249.0,2.25342178]
[1737653244952,0.6154,3249.1,3249.0,1.15272178]
[1737653245151,0.6154,3249.1,3249.0,0.00462178]
[1737653245959,3.2078,3249.2,3249.0,0.00462178]
[1737653246152,3.2078,3249.2,3249.0,1.15652178]
[1737653246352,3.2078,3249.2,3249.0,2.30472178]
[1737653246659,0.61532,3249.5,3249.1,0.6154]
[1737653246846,3.82311,3249.6,3249.2,1.0685]
[1737653247153,0.61528,3249.8,3249.2,3.48113629]
[1737653247346,0.61529,3249.7,3249.3,0.61534]
[1737653247750,0.61531,3249.6,3249.3,0.61534]
[1737653248255,3.95270166,3250.0,3249.2,3.48113629]
[1737653248453,0.61525,3249.9,3249.4,0.61534]
[1737653248656,3.2078,3250.1,3249.5,2.41263629]
[1737653248956,3.82302,3250.1,3249.7,0.61526]
[1737653249147,3.2078,3250.1,3249.7,0.61526]
[1737653249348,0.61523,3250.0,3249.8,1.1129]
[1737653250558,3.2078,3250.1,3249.8,1.1129]
[1737653250860,3.2078,3250.1,3250.0,0.61523]
[1737653251354,3.2078,3251.6,3250.0,10.62043629]
[1737653251559,0.61497,3251.4,3251.2,2.41263629]
[1737653251751,3.2078,3251.6,3251.2,2.41263629]
[1737653251950,3.2078,3251.6,3251.0,1.1129]
[1737653252154,1.0567,3251.7,3250.5,0.0046146]
[1737653252155,3.2078,3251.1,3250.5,0.0046146]
[1737653252367,0.61506,3250.9,3250.6,1.1478]
[1737653252552,1.0567,3251.7,3250.8,3.02770629]
[1737653252553,0.61499,3251.3,3250.8,3.02770629]
[1737653252751,0.61497,3251.4,3250.9,0.61504]
[1737653253062,3.82274,3251.5,3250.8,2.41263629]
[1737653253251,3.82274,3251.5,3250.9,0.61504]
[1737653253454,0.61502,3251.2,3250.6,4.9707]
[1737653253651,3.2078,3251.5,3250.7,0.61509]
[1737653253854,0.61503,3251.1,3250.6,4.9707]
[1737653254050,3.82283,3251.1,3250.6,1.76291]
[1737653254458,3.2078,3251.1,3250.8,2.41263629]
[1737653254656,3.2078,3251.1,3250.6,1.1478]
[1737653254952,0.61508,3250.8,3250.6,1.1478]
[1737653255155,3.2078,3251.1,3250.6,1.1478]
[1737653255353,0.61509,3250.7,3250.6,1.1478]
[1737653255658,0.61507,3250.9,3250.6,1.1478]
[1737653255860,0.61506,3250.9,3250.6,1.1478]
[1737653256062,1.0968,3251.0,3250.6,1.1478]
[1737653256357,1.71184,3251.0,3250.6,1.1478]
[1737653256953,1.0968,3251.0,3250.6,1.1478]
[1737653257158,3.2078,3251.1,3250.6,1.1478]
[1737653257654,0.61506,3250.9,3250.6,1.1478]
[1737653258054,0.61507,3250.9,3250.6,1.1478]
[1737653258457,3.2078,3251.1,3250.6,1.1478]
[1737653258655,0.61509,3250.8,3250.6,1.1478]
[1737653258855,0.61508,3250.8,3250.6,1.1478]
[1737653259055,5.62043629,3251.1,3250.5,0.0046146]
[1737653259264,1.43904556,3251.0,3250.5,0.0046146]
[1737653259464,0.61511,3250.6,3250.5,0.0046146]
[1737653260466,1.96695556,3250.6,3250.5,0.0046146]
[1737653263066,0.61526,3249.8,3249.7,1.1261]
[1737653263253,0.61532,3249.6,3249.4,3.82313]
[1737653263461,0.61532,3249.5,3249.4,4.94923]
[1737653263661,0.61532,3249.5,3249.4,1.1261]
[1737653263864,3.2078,3249.6,3249.5,0.61532]
[1737653264065,3.99736985,3250.0,3249.9,0.61524]
[1737653264256,0.00456523,3249.9,3249.8,2.41263629]
[1737653264461,0.00456523,3249.9,3249.8,3.02789629]
[1737653266065,0.00456523,3249.9,3249.8,2.41263629]
[1737653266264,0.00456523,3249.9,3249.8,3.02789629]
[1737653267268,0.90358528,3250.6,3250.5,0.61513]
[1737653267566,0.28846528,3250.6,3250.5,0.61513]
[1737653267766,3.8229,3250.7,3250.5,0.61513]
[1737653267972,0.61512,3250.6,3250.4,3.02777629]
[1737653268159,3.2078,3250.7,3250.4,2.41263629]
[1737653268358,3.8229,3250.7,3250.5,0.61512]
[1737653268669,3.2078,3250.7,3250.1,4.63813629]
[1737653268865,0.61519,3250.2,3250.1,1.129]
[1737653269567,1.38556862,3250.6,3250.1,1.129]
[1737653269769,0.61518,3250.3,3250.1,1.7442]
[1737653270068,0.28846862,3250.6,3250.1,3.54163629]
[1737653270365,0.28846862,3250.6,3250.5,2.41263629]
[1737653270366,0.61511,3250.6,3250.5,2.41263629]
[1737653270671,3.2078,3250.7,3250.3,0.61517]
[1737653270961,0.28846499,3250.6,3250.2,2.41263629]
[1737653271160,0.61516,3250.4,3250.2,3.02781629]
[1737653271361,0.61514,3250.5,3250.3,0.61517]
[1737653271563,0.61514,3250.5,3250.2,3.02781629]
[1737653271769,0.61515,3250.4,3250.2,3.02781629]
[1737653272273,0.61514,3250.5,3250.2,3.02781629]
[1737653272568,0.61514,3250.5,3250.3,0.61516]
[1737653272766,0.28846499,3250.6,3250.2,2.41263629]
[1737653272961,0.61519,3250.2,3250.1,1.129]
[1737653273161,3.2078,3250.3,3250.1,1.129]
[1737653273368,0.90365499,3250.2,3250.1,1.129]
[1737653273769,0.28846499,3250.2,3250.1,1.74421]
[1737653274172,0.61516,3250.4,3250.1,1.74421]
[1737653274360,0.28846499,3250.6,3250.1,1.129]
[1737653274761,0.28846499,3250.6,3250.2,0.61518]
[1737653274961,0.61518,3250.3,3250.1,1.7442]
[1737653275479,0.61519,3250.2,3250.1,1.129]
[1737653276774,0.61518,3250.3,3250.1,1.74421]
[1737653277073,0.61518,3250.3,3250.1,1.129]
[1737653277275,0.28846499,3250.6,3250.1,1.129]
[1737653277573,0.61519,3250.2,3250.1,1.129]
[1737653277769,0.61518,3250.3,3250.1,1.74421]
[1737653277970,0.61518,3250.3,3250.1,1.129]
[1737653278173,0.61519,3250.2,3250.1,1.129]
[1737653278472,0.61516,3250.4,3250.2,0.61518]
[1737653278867,0.28846499,3250.6,3250.1,1.129]
[1737653279074,0.61518,3250.3,3250.1,1.74419]
[1737653280075,0.61519,3250.2,3250.1,1.129]
[1737653281279,3.82299,3250.2,3250.1,1.129]
[1737653281474,0.61524,3249.9,3249.8,1.1496]
[1737653281680,3.49626499,3250.2,3249.8,1.76486]
[1737653281981,0.61523,3250.0,3249.8,1.76486]
[1737653282474,0.61524,3249.9,3249.8,1.1496]
[1737653283078,0.28846499,3250.1,3249.8,2.2568]
[1737653283279,0.61524,3250.0,3249.8,2.87205]
[1737653283481,0.28846499,3250.1,3250.0,0.61523]
[1737653283874,0.28846499,3250.1,3249.9,3.46863629]
[1737653284172,0.90368499,3250.1,3249.9,4.08386629]
[1737653284375,0.28846499,3250.1,3250.0,0.61523]
[1737653284774,0.28846499,3250.1,3249.9,3.46863629]
[1737653284976,0.28846499,3250.1,3249.8,2.2568]
[1737653285178,0.28846499,3250.1,3250.0,0.61523]
[1737653285376,0.61523,3250.0,3249.9,3.51863629]
[1737653285575,0.61523,3250.0,3249.9,1.72124]
[1737653286083,0.61523,3250.0,3249.9,1.106]
[1737653286677,0.61523,3250.0,3249.9,1.72124]
[1737653286977,0.61521,3250.1,3249.9,1.106]
[1737653287178,0.61523,3250.0,3249.9,1.106]
[1737653287375,0.28846499,3250.5,3249.9,3.51863629]
[1737653287682,0.61519,3250.2,3250.0,0.61521]
[1737653287978,0.28846499,3250.5,3249.9,3.51863629]
[1737653287979,1.82632499,3250.5,3249.9,3.51863629]
[1737653288174,0.61519,3250.2,3250.1,0.61521]
[1737653288371,0.28846499,3250.5,3250.0,3.2078]
[1737653288574,0.61516,3250.4,3250.3,0.61517]
[1737653288782,0.28846499,3250.5,3250.2,2.41263629]
[1737653288981,0.28846499,3250.5,3250.3,0.61516]
[1737653289281,0.90361499,3250.5,3250.4,1.0679]
[1737653289680,0.61515,3250.4,3250.0,3.82302]
[1737653289982,0.61521,3250.1,3250.0,1.0679]
[1737653290578,0.90367499,3250.1,3250.0,1.0679]
[1737653292283,0.28846499,3250.1,3249.8,1.1496]
[1737653292481,0.61536,3249.3,3249.2,0.6199946]
[1737653292679,0.61536,3249.3,3249.2,0.0046146]
[1737653293082,0.28846499,3249.7,3249.2,0.0046146]
[1737653293380,0.61536,3249.3,3249.2,0.0046146]
[1737653294383,3.02799629,3249.3,3249.2,0.0046146]
[1737653294683,0.61536,3249.3,3249.2,0.0046146]
[1737653295084,0.90382499,3249.3,3249.2,0.0046146]
[1737653298784,4.83778697,3249.3,3249.2,0.0046146]
[1737653299286,0.90382499,3249.3,3249.2,0.0046146]
[1737653299688,0.28846499,3249.3,3249.2,0.6199946]
[1737653299886,0.28846499,3249.3,3249.2,2.8053946]
[1737653300082,3.2078,3249.4,3249.2,2.1900146]
[1737653300393,7.61762,3250.4,3249.3,0.61536]
[1737653300588,0.61527,3249.8,3249.7,0.61527]
[1737653300891,1.82644351,3250.3,3249.4,3.49863629]
[1737653300892,0.61529,3249.7,3249.6,0.61529]
[1737653301086,0.28851351,3249.9,3249.4,4.11396629]
[1737653301283,0.28851351,3249.9,3249.6,3.2078]
[1737653301594,3.2078,3250.8,3249.8,2.41263629]
[1737653301791,0.6152,3250.2,3249.9,1.72533]
[1737653302092,0.61522,3250.1,3250.0,1.1181]
[1737653302993,0.61528,3249.7,3249.6,4.3179]
[1737653304086,3.2078,3250.0,3249.4,2.1827]
[1737653304286,0.61532,3249.5,3249.4,2.1827]
[1737653305087,3.2078,3250.0,3249.4,2.1827]
[1737653305289,0.6153,3249.6,3249.4,2.1827]
[1737653305488,3.2078,3250.0,3249.4,2.1827]
[1737653305689,3.2078,3250.0,3249.5,2.41263629]
[1737653305888,3.82303,3250.0,3249.8,0.61525]
[1737653306191,3.82303,3250.0,3249.9,1.1371]
[1737653306398,0.61529,3249.7,3249.6,1.1371]
[1737653307296,0.61529,3249.7,3249.6,1.7524]
[1737653307493,0.61529,3249.7,3249.6,1.1371]
[1737653308991,0.61531,3249.6,3249.4,2.79803]
[1737653309199,0.61532,3249.5,3249.4,2.1827]
[1737653309703,0.61532,3249.5,3249.4,1.1181]
[1737653311588,3.2078,3249.6,3249.2,0.0046146]
[1737653311797,0.61536,3249.3,3249.2,0.0046146]
[1737653315498,4.58152413,3249.3,3249.2,0.0046146]
[1737653315700,4.87010842,3249.3,3249.2,0.0046146]
[1737653316093,9.25474842,3249.3,3248.7,1.1087]
[1737653316293,0.61545,3248.8,3248.7,1.1087]
[1737653317895,0.28858429,3249.0,3248.9,0.61543]
[1737653318101,0.28858429,3249.0,3248.9,3.02806629]
[1737653318303,0.0046146,3249.1,3249.0,0.61541]
[1737653318501,3.2078,3249.6,3249.5,0.61532]
[1737653318800,3.8231,3249.6,3249.5,0.61532]
[1737653319006,1.5381,3250.0,3249.4,2.41263629]
[1737653319195,0.61533,3249.5,3249.4,0.61533]
[1737653319400,0.61532,3249.5,3249.4,0.61533]
[1737653320006,0.61532,3249.6,3249.2,0.61538]
[1737653320210,3.2078,3250.1,3249.6,0.61529]
[1737653320512,3.2078,3250.1,3249.7,1.07573762]
[1737653320513,0.61526,3249.8,3249.7,1.07573762]
[1737653321213,0.61525,3249.9,3249.8,0.61525]
[1737653321415,0.61525,3249.9,3249.8,1.0516]
[1737653323216,0.61525,3249.9,3249.8,1.66686]
[1737653323413,3.2078,3250.1,3249.8,1.0516]
[1737653323611,3.82302,3250.1,3250.0,3.02786629]
[1737653324102,3.82302,3250.1,3250.0,0.61523]
[1737653324302,0.61523,3250.0,3249.9,1.72564]
[1737653324516,0.61523,3250.0,3249.9,1.1104]
[1737653324814,0.61524,3250.0,3249.9,0.61523]
[1737653325209,0.61524,3249.9,3249.8,1.0516]
[1737653325614,0.61524,3249.9,3249.8,1.66686]
[1737653328019,3.2078,3250.1,3250.0,0.61523]
[1737653328216,3.82294,3250.5,3250.0,3.95069629]
[1737653328520,3.2078,3250.5,3250.4,0.61515]
[1737653329219,3.49626266,3250.5,3250.4,0.61515]
[1737653329417,4.11139266,3250.5,3250.4,1.0498]
[1737653330313,0.61519,3250.2,3250.1,1.0793]
[1737653332516,3.2078,3251.4,3250.1,1.0793]
[1737653332717,3.2078,3251.4,3250.7,2.41263629]
[1737653332718,0.61507,3250.8,3250.7,2.41263629]
[1737653333023,0.61511,3250.6,3250.5,1.1018]
[1737653335323,0.28842489,3251.0,3250.1,3.49193629]
[1737653335622,0.61518,3250.3,3250.2,1.137]
[1737653336318,0.28842489,3250.5,3250.0,1.0498]
[1737653336717,0.61517,3250.4,3250.1,0.6152]
[1737653336919,0.61517,3250.3,3250.1,0.6152]
[1737653338113,0.61517,3250.3,3250.1,0.61521]
[1737653338325,0.61514,3250.5,3250.3,0.61516]
[1737653338627,0.61514,3250.5,3250.4,2.2037]
[1737653340917,3.2078,3250.6,3250.0,4.2576]
[1737653341113,0.61521,3250.1,3250.0,5.4024]
[1737653342220,0.61523,3250.0,3249.9,0.0046146]
[1737653342419,3.02786629,3250.0,3249.9,0.0046146]
[1737653342620,4.69465578,3250.0,3249.9,0.0046146]
[1737653342824,0.90373023,3250.0,3249.9,0.0046146]
[1737653343321,0.61523,3250.0,3249.9,0.0046146]
[1737653344626,1.74493,3250.0,3249.9,0.0046146]
[1737653346727,0.61523,3250.0,3249.9,0.0046146]
[1737653349427,0.28850023,3250.1,3249.9,0.0046146]
[1737653349632,0.61523,3250.0,3249.9,0.0046146]
[1737653350124,0.61523,3250.0,3249.9,0.6198546]
[1737653350832,0.28850023,3250.1,3250.0,0.61523]
[1737653351024,0.28850023,3250.1,3250.0,2.84153]
[1737653351225,0.28850023,3250.1,3249.9,0.0046146]
[1737653351530,0.61523,3250.0,3249.9,0.0046146]
[1737653359534,0.61523,3250.0,3249.9,1.1083146]
[1737653359737,0.61523,3250.0,3249.9,1.7235546]
[1737653360029,0.61523,3250.0,3249.9,1.1083146]
[1737653360334,0.61523,3250.0,3249.9,1.7235546]
[1737653361229,0.61523,3250.0,3249.9,1.1083146]
[1737653361537,0.61523,3250.0,3249.9,1.7235546]
[1737653363633,0.90372023,3250.1,3250.0,0.61523]
[1737653363830,0.28850023,3250.1,3250.0,4.16026629]
[1737653364028,0.90371023,3250.1,3250.0,2.84513]
[1737653364332,0.61521,3250.1,3250.0,2.2299]
[1737653364634,3.2078,3250.2,3250.1,0.61521]
[1737653365135,3.82299,3250.2,3250.1,0.61521]
[1737653365438,3.2078,3250.2,3250.0,2.2299]
[1737653365829,0.61521,3250.1,3250.0,2.2299]
[1737653366023,3.2078,3250.2,3250.0,2.2299]
[1737653366329,0.90371386,3250.1,3250.0,2.2299]
[1737653366841,0.90371386,3250.1,3250.0,1.0975]
[1737653367336,0.61523,3250.0,3249.9,1.1083146]
[1737653377646,0.61523,3250.0,3249.9,0.0046146]
[1737653380360,8.02786629,3250.0,3249.9,4.6e-06]
[1737653380645,20.30698492,3250.0,3249.9,4.6e-06]
[1737653380839,0.6154,3249.1,3249.0,2.2477]
[1737653381040,3.8232,3249.1,3249.0,2.2477]
[1737653381649,4.11170386,3249.1,3249.0,2.2477]
[1737653382142,4.11170386,3249.1,3249.0,2.86311]
[1737653382341,0.90390386,3249.1,3249.0,2.86311]
[1737653382538,0.90390386,3249.1,3249.0,2.2477]
[1737653383041,0.61539,3249.2,3249.1,0.61538]
[1737653383245,0.90387386,3249.3,3249.2,0.61538]
[1737653383543,0.90846846,3249.4,3249.3,0.61536]
[1737653383744,0.61538,3249.3,3249.2,0.61537]
[1737653384543,0.90845846,3249.4,3249.3,0.61536]
[1737653384754,0.6199546,3249.4,3249.3,0.61536]
[1737653385346,0.61537,3249.3,3249.2,0.61536]
[1737653386465,0.61537,3249.3,3249.1,1.75778]
[1737653386955,0.61538,3249.2,3249.1,1.75778]
[1737653387348,0.61537,3249.3,3249.1,1.75778]
[1737653387958,0.61538,3249.2,3249.1,1.75778]
[1737653388450,0.61538,3249.2,3249.1,1.1424]
[1737653390754,0.61538,3249.2,3249.1,1.7578]
[1737653391250,0.61538,3249.2,3249.1,1.1424]
[1737653392860,0.0046146,3249.4,3248.8,2.41263629]
[1737653393058,0.6154,3249.1,3249.0,1.06]
[1737653394351,0.2932048,3249.4,3249.0,1.06]
[1737653394556,0.61536,3249.3,3249.2,0.61537]
[1737653395358,0.61538,3249.2,3249.1,0.61539]
[1737653395559,0.61537,3249.3,3249.2,0.61538]
[1737653396364,0.61537,3249.3,3249.0,1.06]
[1737653396365,0.6199646,3249.4,3249.3,0.61536]
[1737653396661,0.0046146,3249.4,3249.3,0.61536]
[1737653397055,0.61524,3250.0,3249.4,1.53832]
[1737653397253,0.61524,3250.0,3249.9,2.41263629]
[1737653397458,1.53786,3250.5,3249.9,2.41263629]
[1737653397667,0.61522,3250.1,3250.0,1.0411]
[1737653398364,0.6153,3249.6,3249.5,1.66312]
[1737653398564,0.6153,3249.6,3249.5,1.0478]
[1737653400267,0.6153,3249.6,3249.5,2.1191]
[1737653400667,0.6153,3249.6,3249.5,2.73442]
[1737653401166,0.61522,3250.0,3249.9,0.61523]
[1737653401364,3.2078,3250.2,3249.8,0.61526]
[1737653401566,0.61523,3250.0,3249.9,1.069]
[1737653402165,0.61523,3250.0,3249.9,1.68424]
[1737653402669,0.61522,3250.1,3249.9,1.68424]
[1737653402869,3.2078,3250.2,3249.9,1.069]
[1737653403068,0.61522,3250.0,3249.9,1.069]
[1737653403266,0.61522,3250.0,3249.9,1.68424]
[1737653403465,0.61522,3250.0,3249.9,1.069]
[1737653405070,0.6153,3249.6,3249.5,2.73441]
[1737653405266,0.6153,3249.6,3249.5,3.75821]
[1737653405471,3.2078,3250.2,3249.5,3.1429]
[1737653405667,3.2078,3250.2,3249.7,2.41263629]
[1737653405968,0.61523,3250.0,3249.9,0.61524]
[1737653406270,0.61522,3250.1,3250.0,0.61522]
[1737653406470,0.61514,3250.5,3250.3,0.61515]
[1737653406669,0.61513,3250.5,3250.4,2.76054]
[1737653406968,3.2078,3250.6,3250.4,2.76054]
[1737653406969,3.82292,3250.6,3250.4,2.76054]
[1737653407668,3.82292,3250.6,3250.4,2.1454]
[1737653407866,3.82292,3250.6,3250.4,2.76054]
[1737653408169,0.61512,3250.6,3250.4,2.76054]
[1737653408768,3.2078,3251.1,3250.4,2.1454]
[1737653408957,0.61513,3250.5,3250.4,1.1208]
[1737653409168,0.61521,3250.1,3250.0,2.75722]
[1737653409468,0.61521,3250.1,3250.0,1.1207]
[1737653410967,0.61521,3250.1,3250.0,1.73592]
[1737653411167,3.2078,3250.2,3250.0,3.53333629]
[1737653411471,3.2556,3250.6,3250.0,3.53333629]
[1737653411675,0.61521,3250.1,3250.0,1.1207]
[1737653414964,0.61526,3249.8,3249.7,0.0046146]
[1737653415566,3.2078,3249.9,3249.7,0.0046146]
[1737653415772,3.2078,3249.9,3249.8,0.61526]
[1737653416275,0.61515,3250.4,3250.3,0.61516]
[1737653416469,1.53774,3250.7,3249.7,2.41725089]
[1737653416777,1.53793,3250.3,3249.7,2.41725089]
[1737653416970,3.2078,3250.4,3249.7,2.41725089]
[1737653417171,0.61525,3249.9,3249.8,0.61525]
[1737653417677,0.61526,3249.8,3249.7,3.03252089]
[1737653417868,0.61519,3250.2,3249.8,0.61526]
[1737653418069,0.61524,3250.0,3249.9,0.9423]
[1737653420378,3.82304,3250.0,3249.9,0.9423]
[1737653424277,0.61514,3250.5,3249.9,0.9423]
[1737653424475,0.61514,3250.5,3250.4,0.61514]
[1737653425072,0.61514,3250.5,3250.4,0.9846]
[1737653426876,0.61521,3250.1,3250.0,0.9259]
[1737653428280,0.61521,3250.1,3250.0,1.9257]
[1737653429981,0.61521,3250.1,3250.0,0.9998]
[1737653430172,0.61526,3249.8,3249.7,0.0046146]
[1737653436999,0.61526,3249.8,3249.7,40.8046146]
[1737653437394,0.28852141,3250.3,3249.7,45.8046146]
[1737653437599,0.90370141,3250.3,3250.2,2.41263629]
[1737653437899,0.61518,3250.3,3250.2,2.41263629]
[1737653438089,0.61521,3250.1,3250.0,0.9681]
[1737653438887,0.61526,3249.8,3249.7,0.0046146]
[1737653439101,0.61526,3249.8,3249.7,0.9727146]
[1737653449206,0.28851582,3250.1,3249.7,0.9727146]
[1737653449405,0.61524,3250.0,3249.7,1.5879846]
[1737653449599,0.61524,3250.0,3249.8,0.61526]
[1737653449792,0.61521,3250.1,3249.9,3.02787629]
[1737653450100,0.61522,3250.0,3249.9,2.41263629]
[1737653451004,0.61521,3250.1,3250.0,0.61522]
[1737653451396,0.61521,3250.1,3249.9,3.02786629]
[1737653451800,0.61521,3250.1,3250.0,0.61522]
[1737653452001,4.2012,3250.4,3249.9,5.62043629]
[1737653452202,4.2012,3250.4,3249.9,6.23566629]
[1737653452809,0.61521,3250.1,3250.0,0.61521]
[1737653453009,0.61522,3250.0,3249.9,6.23566629]
[1737653453908,0.61522,3250.1,3250.0,0.61522]
[1737653454611,0.9934,3250.4,3249.9,5.62043629]
[1737653454809,0.61517,3250.3,3250.2,3.02781629]
[1737653455109,0.61508,3250.8,3250.2,2.41263629]
[1737653455313,0.61505,3251.0,3250.8,0.61506]
[1737653455503,0.61504,3251.0,3250.9,2.8257]
[1737653455699,0.61504,3251.0,3250.9,1.8952]
[1737653455904,0.61504,3251.0,3250.9,0.9683]
[1737653456405,0.61509,3250.7,3250.6,3.2078]
[1737653458707,0.61519,3250.2,3250.0,3.2078]
[1737653458911,0.61519,3250.2,3250.1,1.8857]
[1737653460313,0.61526,3249.8,3249.7,0.9694146]
[1737653460508,0.61526,3249.8,3249.7,0.0046146]
[1737653462018,0.61526,3249.9,3249.7,0.0046146]
[1737653462317,0.61516,3250.4,3250.3,0.61516]
[1737653462506,3.2078,3250.8,3250.2,2.41263629]
[1737653462814,3.2078,3250.8,3250.7,3.02772629]
[1737653463613,3.2078,3250.8,3250.7,2.41263629]
[1737653463811,3.2078,3250.8,3250.7,3.02772629]
[1737653464009,5.8426,3251.7,3250.7,2.41263629]
[1737653464210,0.61502,3251.1,3251.0,3.02766629]
[1737653464405,0.61502,3251.1,3251.0,2.41263629]
[1737653464617,1.53731,3251.6,3251.0,2.41263629]
[1737653464918,0.61502,3251.1,3251.0,3.02766629]
[1737653465216,0.61502,3251.1,3251.0,2.41263629]
[1737653466311,0.61502,3251.1,3251.0,3.02767629]
[1737653467013,0.61501,3251.2,3251.0,3.02767629]
[1737653467214,0.61499,3251.3,3251.1,0.61501]
[1737653467413,0.615,3251.2,3251.1,0.9892]
[1737653469716,4.1721,3251.7,3251.1,0.9892]
[1737653469912,4.1721,3251.7,3251.3,2.41263629]
[1737653470120,0.61496,3251.5,3251.3,3.02760629]
[1737653470417,0.61496,3251.5,3251.4,0.9636]
[1737653471017,0.61493,3251.6,3251.4,1.57855]
[1737653471411,0.61493,3251.6,3251.4,0.9636]